fUSD/lending_fUSD_20251101
["ID","MTS","AMOUNT","RATE_DAILY","PERIOD"]
[392833947,1762020443529,151.0,0.00014791,2]
[392833948,1762020443977,151.0,0.00014791,2]
[392833949,1762020444140,151.0,0.00014791,2]
[392833950,1762020444585,151.0,0.00014791,2]
[392833951,1762020445277,151.0,0.00014791,2]
[392833952,1762020445921,151.0,0.00014791,2]
[392833953,1762020445955,322.6107,0.00014791,2]
[392833954,1762020446606,151.0,0.00014791,2]
[392833955,1762020448745,500.0,0.00014791,2]
[392833956,1762020449387,500.0,0.00014791,2]
[392833957,1762020449990,500.0,0.00014791,2]
[392833958,1762020453468,320.23711715,0.00014791,2]
[392833959,1762020456769,200.0,0.00014791,2]
[392833960,1762020483550,165.37,0.00013904,2]
[392833962,1762020492750,961.45,0.00013904,2]
[392833963,1762020502999,5322.34218285,0.000147,2]
[392833964,1762020503022,3677.65681715,0.000147,2]
[392833965,1762020503557,500.0,0.00014356,2]
[392833966,1762020512017,500.0,0.00014799,2]
[392833967,1762020512063,198.96657485,0.00014799,2]
[392833968,1762020512102,506.1769794,0.00014799,2]
[392833969,1762020512167,286.19088876,0.00014799,2]
[392833970,1762020513830,500.0,0.00014356,2]
[392833972,1762020522525,2500.0,0.000147,2]
[392833973,1762020526379,500.0,0.00014356,2]
[392833975,1762020542280,150.0,0.00014799,2]
[392833977,1762020590949,2470.76,0.00031232,120]
[392833978,1762020591191,2470.76,0.00031506,120]
[392833979,1762020601417,300.0,0.00014799,2]
[392833980,1762020601478,381.01873984,0.00014799,2]
[392833981,1762020601501,818.98126016,0.00014799,2]
[392833982,1762020606695,9181.02873984,0.0001479,2]
[392833983,1762020606716,331.32126016,0.0001479,2]
[392833984,1762020624615,681.98,0.00013893,2]
[392833999,1762020632315,-383.47776338,0.000148,2]
[392834000,1762020632420,-302.0,0.000148,2]
[392834007,1762020638241,-297.18518212,0.000148,2]
[392834082,1762020639434,-6617.25282864,0.000148,2]
[392834084,1762020639450,-20848.53113788,0.000148,2]
[392834086,1762020639465,-8467.50452704,0.000148,2]
[392834197,1762020640788,-1427.40872248,0.000148,2]
[392834938,1762020646535,-1589.80858611,0.000148,2]
[392835058,1762020661506,300.0,0.00014799,2]
[392835059,1762020669432,500.0,0.00031232,120]
[392835060,1762020669700,500.85242501,0.00031506,120]
[392835061,1762020674376,618.04940627,0.00014799,2]
[392835062,1762020674443,500.0,0.00014799,2]
[392835063,1762020677801,209.23088309,0.00031232,120]
[392835064,1762020697982,216.89158,0.00014685,2]
[392835065,1762020712995,500.0,0.00031506,120]
[392835066,1762020721231,300.0,0.00014799,2]
[392835067,1762020721722,150.0,0.00014799,2]
[392835068,1762020722625,300.0,0.00014799,2]
[392835069,1762020725595,620.0,0.00014799,2]
[392835070,1762020733278,289.89738536,0.00014799,2]
[392835071,1762020737202,496.47127164,0.00014799,2]
[392835072,1762020737403,262.55887276,0.00014799,2]
[392835073,1762020739792,151.0,0.00014797,2]
[392835074,1762020740169,151.0,0.00014799,2]
[392835075,1762020756831,322.6107,0.00014799,2]
[392835076,1762020758048,216.26626267,0.000147,2]
[392835077,1762020778725,222.52725023,0.000147,2]
[392835078,1762020781242,300.0,0.00014799,2]
[392835079,1762020783604,222.52725017,0.00014722,2]
[392835080,1762020788565,222.52725017,0.00014744,2]
[392835081,1762020793555,222.52725017,0.00014767,2]
[392835082,1762020798024,2901.8542604,0.000147,2]
[392835083,1762020798049,10000.01,0.000147,2]
[392835084,1762020798078,10000.01,0.000147,2]
[392835085,1762020798102,10000.01,0.000147,2]
[392835086,1762020798126,10000.01,0.000147,2]
[392835087,1762020798150,10000.01,0.000147,2]
[392835088,1762020798179,10000.01,0.000147,2]
[392835089,1762020798205,10000.01,0.000147,2]
[392835090,1762020798230,10000.01,0.000147,2]
[392835091,1762020798253,10000.01,0.000147,2]
[392835092,1762020809615,-7651.11481368,0.000147,2]
[392835093,1762020809628,-10000.01,0.000147,2]
[392835094,1762020809678,-10000.01,0.000147,2]
[392835095,1762020811460,-10000.01,0.000147,2]
[392835096,1762020811585,-10000.01,0.000147,2]
[392835097,1762020811712,-10000.01,0.000147,2]
[392835098,1762020811822,-10000.01,0.000147,2]
[392835099,1762020811931,-10000.01,0.000147,2]
[392835100,1762020812047,-10000.01,0.000147,2]
[392835101,1762020812156,-10000.01,0.000147,2]
[392835102,1762020814447,-128.75302592,0.000147,2]
[392835103,1762020820520,-222.52725017,0.00014789,2]
[392835104,1762020832802,2264.86,0.00031232,120]
[392835105,1762020833069,2264.86,0.00031506,120]
[392835106,1762020840630,848.9391,0.000147,2]
[392835107,1762020841263,300.0,0.00014799,2]
[392835108,1762020850913,-8851.0709,0.000148,2]
[392835109,1762020851051,-10000.01,0.000148,2]
[392835110,1762020851232,-1148.9391,0.000148,2]
[392835111,1762020851270,-7702.1318,0.000148,2]
[392835112,1762020851358,-10000.01,0.000148,2]
[392835113,1762020851500,-2297.8782,0.000148,2]
[392835114,1762020851538,-5404.2536,0.000148,2]
[392835115,1762020851610,-4595.7564,0.000148,2]
[392835116,1762020851650,-808.4972,0.000148,2]
[392835117,1762020851763,-1762.95714343,0.000148,2]
[392835118,1762020851808,-6474.09571314,0.000148,2]
[392835119,1762020852113,-10000.01,0.000148,2]
[392835120,1762020852251,-10000.01,0.000148,2]
[392835121,1762020852398,-3525.91428686,0.000148,2]
[392835122,1762020852446,-2948.18142628,0.000148,2]
[392835123,1762020853706,-2948.18142628,0.000148,2]
[392835124,1762020853730,-4103.64714744,0.000148,2]
[392835125,1762020859773,-10000.01,0.000148,2]
[392835126,1762020859899,-10000.01,0.000148,2]
[392835127,1762020860043,-10000.01,0.000148,2]
[392835128,1762020860182,-151.0,0.000148,2]
[392835129,1762020860216,-9698.01,0.000148,2]
[392835130,1762020860294,-3302.01,0.000148,2]
[392835131,1762020860322,-455.42017628,0.000148,2]
[392835132,1762020860379,-2485.14964744,0.000148,2]
[392835133,1762020860433,-2485.14964744,0.000148,2]
[392835134,1762020860457,-5029.71070512,0.000148,2]
[392835135,1762020860550,-10000.01,0.000148,2]
[392835136,1762020860697,-10000.01,0.000148,2]
[392835137,1762020863543,151.0,0.00014797,2]
[392835138,1762020893280,-9849.01,0.000148,2]
[392835139,1762020893602,-10000.01,0.000148,2]
[392835140,1762020894101,-10000.01,0.000148,2]
[392835141,1762020894209,-10000.01,0.000148,2]
[392835142,1762020894315,-10000.01,0.000148,2]
[392835143,1762020894422,-10000.01,0.000148,2]
[392835144,1762020894532,-10000.01,0.000148,2]
[392835145,1762020894654,-10000.01,0.000148,2]
[392835146,1762020894760,-10000.01,0.000148,2]
[392835147,1762020898992,-10000.01,0.000148,2]
[392835148,1762020900268,841.77,0.00013899,2]
[392835149,1762020902001,-300.0,0.00014799,2]
[392835150,1762020902030,-1200.0,0.00014799,2]
[392835151,1762020902057,-150.0,0.00014799,2]
[392835152,1762020902119,-6700.01,0.000148,2]
[392835153,1762020902143,-10000.01,0.000148,2]
[392835154,1762020902238,-10000.01,0.000148,2]
[392835155,1762020902576,-10000.01,0.000148,2]
[392835156,1762020902623,-10000.01,0.000148,2]
[392835157,1762020902737,-10000.01,0.000148,2]
[392835158,1762020902924,-1196.51297105,0.000148,2]
[392835159,1762020935583,500.0,0.000147,2]
[392835160,1762020959796,151.0,0.000148,2]
[392835161,1762020967876,150.28055617,0.00015,3]
[392835162,1762020968031,6955.9840579,0.000148,2]
[392835163,1762020968056,10000.01,0.000148,2]
[392835164,1762020968079,10000.01,0.000148,2]
[392835165,1762020993091,500.0,0.00014356,2]
[392835166,1762021021523,300.0,0.00014799,2]
[392835167,1762021033837,2076.12,0.00031232,120]
[392835168,1762021034483,2076.12,0.00031506,120]
[392835169,1762021042665,346.0016,0.0001475,2]
[392835170,1762021042743,346.0016,0.0001475,2]
[392835171,1762021042817,346.0016,0.0001473,2]
[392835172,1762021042852,346.0016,0.0001479,2]
[392835173,1762021081528,300.0,0.00014799,2]
[392835174,1762021082423,150.0,0.00014799,2]
[392835175,1762021118816,200.33362213,0.00014799,2]
[392835176,1762021119079,500.0,0.00014799,2]
[392835177,1762021119448,285.50158604,0.00014799,2]
[392835178,1762021128158,156.54499998,0.000147,2]
[392835179,1762021133103,156.54499992,0.00014722,2]
[392835180,1762021138112,156.54499992,0.00014744,2]
[392835181,1762021143111,156.54499992,0.00014767,2]
[392835182,1762021148087,156.54499992,0.00014789,2]
[392835183,1762021180380,500.0,0.00031232,120]
[392835184,1762021180613,500.0,0.00031506,120]
[392835185,1762021201631,1200.0,0.00014799,2]
[392835186,1762021201751,300.0,0.00014799,2]
[392835187,1762021201828,300.0,0.00014799,2]
[392835188,1762021204449,3797.44339217,0.0001479,2]
[392835189,1762021204471,958.72660783,0.0001479,2]
[392835190,1762021221326,271.11833922,0.00014797,2]
[392835191,1762021261820,150.0,0.00014799,2]
[392835192,1762021269076,158.98880347,0.000147,2]
[392835193,1762021274011,158.98880347,0.00014729,2]
[392835194,1762021278980,158.98880347,0.00014757,2]
[392835195,1762021282501,1903.11,0.00031232,120]
[392835196,1762021282740,1903.11,0.00031506,120]
[392835197,1762021284145,158.98880347,0.00014786,2]
[392835198,1762021309697,2088.94744324,0.000147,2]
[392835199,1762021314891,2088.94744315,0.00014722,2]
[392835200,1762021319709,2088.94744315,0.00014744,2]
[392835201,1762021321940,1589.25,0.00013927,2]
[392835202,1762021324704,128.11750953,0.00014767,2]
[392835203,1762021324729,1960.82993362,0.00014767,2]
[392835204,1762021329685,2088.94744315,0.00014789,2]
[392835205,1762021330562,620.0,0.00014791,2]
[392835206,1762021334383,151.0,0.00014791,2]
[392835207,1762021339344,496.47127164,0.00014791,2]
[392835208,1762021381226,300.0,0.00014799,2]
[392835209,1762021410238,166.66,0.00013699,2]
[392835210,1762021410470,166.66,0.00013884,2]
[392835211,1762021410664,166.66,0.00014069,2]
[392835212,1762021410867,166.66,0.00014254,2]
[392835213,1762021411076,166.66,0.00014439,2]
[392835214,1762021411353,166.66,0.00014624,2]
[392835218,1762021434467,854.3,0.00013928,2]
[392835219,1762021441837,150.0,0.00014799,2]
[392835220,1762021443400,156.54499992,0.000147,2]
[392835221,1762021448787,2221.95635167,0.000147,2]
[392835222,1762021448813,10000.01,0.000147,2]
[392835223,1762021448836,6247.79214833,0.000147,2]
[392835224,1762021448966,156.54499992,0.0001475,2]
[392835225,1762021461005,3595.67285175,0.000147,2]
[392835226,1762021461028,3742.87594825,0.000147,2]
[392835227,1762021491438,365.83558929,0.00014231,2]
[392835228,1762021501239,300.0,0.00014799,2]
[392835229,1762021501283,1200.0,0.00014799,2]
[392835230,1762021508991,150.0,0.00013488,2]
[392835231,1762021509067,187.47255689,0.00013488,2]
[392835232,1762021521935,1744.52,0.00031232,120]
[392835233,1762021522169,1744.52,0.00031506,120]
[392835235,1762021561527,300.0,0.00014799,2]
[392835236,1762021577364,151.0,0.00014799,2]
[392835237,1762021577451,151.0,0.00014799,2]
[392835238,1762021589149,187.11728368,0.00014231,2]
[392835239,1762021594699,1014.0,0.000147,2]
[392835240,1762021598097,419.85363927,0.000147,2]
[392835241,1762021602908,419.85363921,0.00014729,2]
[392835242,1762021607907,419.85363921,0.00014757,2]
[392835243,1762021612904,419.85363921,0.00014786,2]
[392835244,1762021621499,300.0,0.00014799,2]
[392835245,1762021621921,150.0,0.00014799,2]
[392835246,1762021624992,121.29406499,0.00014791,2]
[392835247,1762021625014,498.70593501,0.00014791,2]
[392835248,1762021633944,151.0,0.00014791,2]
[392835249,1762021637281,496.47127164,0.00014791,2]
[392835250,1762021676004,1095.14307229,0.000147,2]
[392835251,1762021680994,1095.14307223,0.00014722,2]
[392835252,1762021685962,1095.14307223,0.00014744,2]
[392835255,1762021687902,255.51611901,0.000135,2]
[392835256,1762021690979,1095.14307223,0.00014767,2]
[392835257,1762021695967,1095.14307223,0.00014789,2]
[392835267,1762021723273,200.0,0.00013964,2]
[392835268,1762021723708,156.54499992,0.000147,2]
[392835271,1762021744441,384.05544011,0.000147,2]
[392835273,1762021749409,384.05544008,0.00014722,2]
[392835276,1762021754670,384.05544008,0.00014744,2]
[392835277,1762021759632,384.05544008,0.00014767,2]
[392835278,1762021761306,1599.14,0.00031232,120]
[392835279,1762021761574,1599.14,0.00031506,120]
[392835280,1762021764444,384.05544008,0.00014789,2]
[392835282,1762021797470,1120.94,0.00013983,2]
[392835283,1762021801142,300.0,0.00014799,2]
[392835284,1762021801177,300.0,0.00014799,2]
[392835285,1762021801211,1200.0,0.00014799,2]
[392835286,1762021801981,150.0,0.00014799,2]
[392835287,1762021805294,2378.09,0.0001479,2]
[392835288,1762021805520,2378.09,0.0001479,2]
[392835289,1762021817979,258.40961,0.0001465,2]
[392835297,1762021831417,-2022.02103042,0.000148,2]
[392835298,1762021831429,-1866.94306394,0.000148,2]
[392835299,1762021831472,-5648.47404236,0.000148,2]
[392835300,1762021831483,-1171.87051943,0.000148,2]
[392835301,1762021831496,-4031.92119994,0.000148,2]
[392835302,1762021831529,-675.06737336,0.000148,2]
[392835303,1762021831542,-58968.04921265,0.000148,2]
[392835304,1762021831551,-1000.0,0.000148,2]
[392835305,1762021831562,-72963.1661239,0.000148,2]
[392835306,1762021831574,-21229.71888685,0.000148,2]
[392835311,1762021831799,-289.14843026,0.000148,2]
[392835313,1762021831812,-566.25609508,0.000148,2]
[392835322,1762021837321,-54460.23834206,0.000148,2]
[392835323,1762021837428,-599.24625432,0.000148,2]
[392835324,1762021837535,-2464.13995823,0.000148,2]
[392835327,1762021837549,-13336.71082944,0.000148,2]
[392835329,1762021837560,-4154.27075023,0.000148,2]
[392835539,1762021839593,-22701.16907914,0.000148,2]
[392835550,1762021842607,-167748.12178522,0.000148,2]
[392835551,1762021842617,-10000.01,0.000148,2]
[392835552,1762021842627,-151.0,0.000148,2]
[392835553,1762021842637,-7917.76640172,0.000148,2]
[392835576,1762021883132,411.15308683,0.00014799,2]
[392835577,1762021921225,300.0,0.00014799,2]
[392835578,1762021930784,435.21642301,0.00014791,2]
[392835579,1762021930806,184.78357699,0.00014791,2]
[392835580,1762021940929,496.47127164,0.00014791,2]
[392835581,1762021946087,151.0,0.00014791,2]
[392835582,1762021981808,150.0,0.00014799,2]
[392835583,1762021982255,9017.75515137,0.000147,2]
[392835584,1762021982281,10000.01,0.000147,2]
[392835585,1762021982322,5413.33294863,0.000147,2]
[392835586,1762021984827,1465.88,0.00031232,120]
[392835587,1762021985057,1465.88,0.00031506,120]
[392835591,1762021990580,935.64,0.00013699,2]
[392835592,1762021999236,1000.0,0.000147,2]
[392835593,1762022057995,500.0,0.00031232,120]
[392835594,1762022058227,309.38846767,0.00031506,120]
[392835595,1762022074555,836.48,0.0001391,2]
[392835596,1762022074756,1000.0,0.000147,2]
[392835597,1762022101187,1200.0,0.00014799,2]
[392835598,1762022101221,300.0,0.00014799,2]
[392835599,1762022133290,356.67559606,0.00014799,2]
[392835600,1762022152336,8579.5577,0.00014771,2]
[392835601,1762022157465,999.0,0.00013911,3]
[392835602,1762022161778,150.0,0.00014799,2]
[392835603,1762022162024,300.0,0.00014799,2]
[392835604,1762022170326,970.4523,0.00014771,2]
[392835605,1762022170349,29.5477,0.00014771,2]
[392835606,1762022195733,749.74192079,0.000147,2]
[392835607,1762022196201,150.0,0.00014739,2]
[392835608,1762022217897,1343.72,0.00031232,120]
[392835609,1762022218127,1343.72,0.00031506,120]
[392835610,1762022228014,496.47127164,0.00014791,2]
[392835611,1762022234189,510.1619124,0.00031232,120]
[392835612,1762022234758,841.04203672,0.00014763,2]
[392835613,1762022236850,620.0,0.00014791,2]
[392835614,1762022239702,841.0420367,0.00014778,2]
[392835615,1762022242523,151.0,0.00014791,2]
[392835616,1762022244707,841.0420367,0.00014793,2]
[392835619,1762022322082,168.0,0.00014736,2]
[392835620,1762022339567,1000.0,0.00014763,2]
[392835621,1762022341854,150.0,0.00014799,2]
[392835622,1762022349363,506.80625151,0.00031232,120]
[392835623,1762022353236,308.12098277,0.00031232,120]
[392835624,1762022355888,1000.0,0.00013899,2]
[392835625,1762022390286,500.0,0.00031232,120]
[392835626,1762022390554,520.27795958,0.00031506,120]
[392835627,1762022401324,1200.0,0.00014799,2]
[392835628,1762022401379,300.0,0.00014799,2]
[392835629,1762022405407,-3022.77295258,0.000148,2]
[392835630,1762022409258,-9370.26298952,0.000148,2]
[392835631,1762022409382,-629.74701048,0.000148,2]
[392835632,1762022409490,502.4473957,0.00031232,120]
[392835633,1762022409513,-8740.51597904,0.000148,2]
[392835634,1762022409591,-10000.01,0.000148,2]
[392835635,1762022413198,-10000.01,0.000148,2]
[392835636,1762022413344,-1259.49402096,0.000148,2]
[392835637,1762022413380,-7481.02195808,0.000148,2]
[392835638,1762022413701,-10000.01,0.000148,2]
[392835639,1762022413716,-10000.01,0.000148,2]
[392835640,1762022413792,-2131.12343448,0.000148,2]
[392835641,1762022413815,-5737.76313104,0.000148,2]
[392835642,1762022413911,-10000.01,0.000148,2]
[392835643,1762022417330,-1600.01,0.000148,2]
[392835644,1762022417358,-151.0,0.000148,2]
[392835645,1762022417402,-6497.99,0.000148,2]
[392835646,1762022417437,-2302.02000001,0.000148,2]
[392835647,1762022417471,-5395.96999998,0.000148,2]
[392835648,1762022417548,-10000.01,0.000148,2]
[392835649,1762022417668,-10000.01,0.000148,2]
[392835650,1762022428498,258.40962,0.0001479,2]
[392835651,1762022480935,-4604.04000001,0.000148,2]
[392835652,1762022480992,-533.52037998,0.000148,2]
[392835653,1762022481214,-533.52037998,0.000148,2]
[392835654,1762022481239,-8932.96924004,0.000148,2]
[392835655,1762022481317,-10000.01,0.000148,2]
[392835656,1762022481456,-10000.01,0.000148,2]
[392835657,1762022481552,-10000.01,0.000148,2]
[392835658,1762022481769,-10000.01,0.000148,2]
[392835659,1762022481868,-10000.01,0.000148,2]
[392835660,1762022481980,-10000.01,0.000148,2]
[392835661,1762022482104,-10000.01,0.000148,2]
[392835662,1762022482216,-10000.01,0.000148,2]
[392835663,1762022486793,-10000.01,0.000148,2]
[392835664,1762022486920,-4046.4786468,0.000148,2]
[392835665,1762022486942,-1907.0527064,0.000148,2]
[392835666,1762022487053,-263.14616784,0.000148,2]
[392835667,1762022487085,-9473.71766432,0.000148,2]
[392835668,1762022487158,-10000.01,0.000148,2]
[392835669,1762022487264,-10000.01,0.000148,2]
[392835670,1762022487400,-10000.01,0.000148,2]
[392835671,1762022487518,-10000.01,0.000148,2]
[392835672,1762022487620,-10000.01,0.000148,2]
[392835673,1762022487727,-10000.01,0.000148,2]
[392835674,1762022487833,-10000.01,0.000148,2]
[392835675,1762022499361,250.0,0.0001388,2]
[392835676,1762022521837,150.0,0.00014799,2]
[392835677,1762022529072,2500.0,0.000147,2]
[392835678,1762022535882,620.0,0.00014791,2]
[392835679,1762022536197,151.0,0.00014791,2]
[392835680,1762022539500,221.6410156,0.00014783,2]
[392835681,1762022539538,496.47127164,0.00014791,2]
[392835682,1762022581233,300.0,0.00014799,2]
[392835683,1762022614432,1425.0,0.00014771,2]
[392835684,1762022642826,8575.01,0.000147,2]
[392835685,1762022642854,10000.01,0.000147,2]
[392835686,1762022642882,10000.01,0.000147,2]
[392835687,1762022642907,10000.01,0.000147,2]
[392835688,1762022642930,10000.01,0.000147,2]
[392835689,1762022642954,10000.01,0.000147,2]
[392835690,1762022642977,10000.01,0.000147,2]
[392835691,1762022643001,10000.01,0.000147,2]
[392835692,1762022643025,10000.01,0.000147,2]
[392835693,1762022643048,1450.9388,0.000147,2]
[392835694,1762022701584,300.0,0.00014799,2]
[392835695,1762022701620,1200.0,0.00014799,2]
[392835696,1762022702521,150.0,0.00014799,2]
[392835697,1762022708303,300.0,0.00014799,2]
[392835698,1762022715183,150.0,0.00013488,2]
[392835700,1762022728581,150.0,0.00013488,2]
[392835701,1762022728653,1231.75,0.00031232,120]
[392835702,1762022728907,1231.75,0.00031506,120]
[392835703,1762022735257,2961.97030393,0.000147,2]
[392835704,1762022740172,2961.97030388,0.00014722,2]
[392835706,1762022743853,375.13059219,0.000147,2]
[392835707,1762022743876,524.54420781,0.000147,2]
[392835708,1762022745183,2961.97030388,0.00014744,2]
[392835709,1762022750210,2961.97030388,0.00014767,2]
[392835710,1762022755186,2961.97030388,0.00014789,2]
[392835712,1762022812604,589.55488055,0.000147,2]
[392835713,1762022812631,10000.01,0.000147,2]
[392835714,1762022812656,10000.01,0.000147,2]
[392835715,1762022812682,10000.01,0.000147,2]
[392835716,1762022812707,10000.01,0.000147,2]
[392835717,1762022812731,10000.01,0.000147,2]
[392835718,1762022812756,10000.01,0.000147,2]
[392835719,1762022812781,10000.01,0.000147,2]
[392835720,1762022812809,10000.01,0.000147,2]
[392835721,1762022812835,10000.01,0.000147,2]
[392835722,1762022821465,-222.0,0.00014699,2]
[392835723,1762022824093,-4866.89771276,0.000147,2]
[392835724,1762022824185,-10000.01,0.000147,2]
[392835725,1762022824302,-1693.55740669,0.000147,2]
[392835726,1762022827038,175.90826,0.0001465,2]
[392835727,1762022830245,620.0,0.00014791,2]
[392835728,1762022831957,184.96481833,0.00014791,2]
[392835729,1762022837350,496.47127164,0.00014791,2]
[392835730,1762022855961,150.0,0.00012846,2]
[392835731,1762022856021,150.0,0.00012903,2]
[392835732,1762022856075,150.0,0.00012904,2]
[392835733,1762022881697,150.0,0.00014799,2]
[392835734,1762022917078,200.0,0.00013873,2]
[392835735,1762022950654,1129.1,0.00031232,120]
[392835736,1762022950931,1129.1,0.00031506,120]
[392835737,1762022960703,1060.44286922,0.00014744,2]
[392835738,1762022965695,1060.44286918,0.00014766,2]
[392835739,1762022975702,1060.44286918,0.00014789,2]
[392835740,1762022979469,-4541.33704245,0.000148,2]
[392835741,1762022979614,-10000.01,0.000148,2]
[392835742,1762022979740,-10000.01,0.000148,2]
[392835743,1762022979861,-10000.01,0.000148,2]
[392835744,1762022979985,-10000.01,0.000148,2]
[392835745,1762022980096,-1290.75819323,0.000148,2]
[392835746,1762022980123,-3111.3790131,0.000148,2]
[392835747,1762022980166,-1195.73558734,0.000148,2]
[392835748,1762022980191,-10000.01,0.000148,2]
[392835749,1762022980313,-10000.01,0.000148,2]
[392835750,1762022980440,-10000.01,0.000148,2]
[392835751,1762022980580,-10000.01,0.000148,2]
[392835752,1762022991254,-10000.01,0.00014743,2]
[392835753,1762022991535,-10000.01,0.00014743,2]
[392835754,1762022991640,-10000.01,0.00014743,2]
[392835755,1762022991746,-10000.01,0.00014743,2]
[392835756,1762022991873,-10000.01,0.00014743,2]
[392835757,1762022992083,-10000.01,0.00014743,2]
[392835758,1762022992219,-10000.01,0.00014743,2]
[392835759,1762022992471,-10000.01,0.00014743,2]
[392835760,1762022992484,-10000.01,0.00014743,2]
[392835761,1762022992555,-10000.01,0.00014743,2]
[392835762,1762023001500,1200.0,0.00014742,2]
[392835763,1762023017089,3074.69214527,0.000147,2]
[392835767,1762023031477,-391.2107439,0.00014743,2]
[392835768,1762023031489,-2904.14323361,0.00014743,2]
[392835769,1762023031502,-1335.80895032,0.00014743,2]
[392835771,1762023031688,-782.59605814,0.00014743,2]
[392835772,1762023031699,-832.28589259,0.00014743,2]
[392835773,1762023031711,-1330.68042868,0.00014743,2]
[392835774,1762023031724,-2507.87614712,0.00014743,2]
[392835775,1762023031737,-12431.50804023,0.00014743,2]
[392835776,1762023031748,-3158.05890541,0.00014743,2]
[392835777,1762023031757,-891.8528,0.00014743,2]
[392835778,1762023031767,-300.0,0.00014757,2]
[392835779,1762023031776,-195.0,0.00014757,2]
[392835780,1762023031786,-300.0,0.00014772,2]
[392835781,1762023031795,-300.0,0.00014783,2]
[392835782,1762023031805,-264.66691542,0.00014783,2]
[392835783,1762023031814,-195.0,0.00014783,2]
[392835784,1762023031824,-29414.02582597,0.000148,2]
[392835785,1762023031877,-1429.40309995,0.000148,2]
[392835786,1762023031889,-473.58651533,0.000148,2]
[392835787,1762023031901,-195.40742302,0.000148,2]
[392835788,1762023031911,-807.06358554,0.000148,2]
[392835789,1762023031924,-644.96123496,0.000148,2]
[392835790,1762023031939,-48258.1941879,0.000148,2]
[392835791,1762023031948,-8999.93225693,0.000148,2]
[392835792,1762023031962,-14971.76428202,0.000148,2]
[392835796,1762023037491,-14719.78688427,0.000148,2]
[392835797,1762023037543,-10260.60847321,0.000148,2]
[392835798,1762023037553,-156.51995,0.000148,2]
[392835799,1762023037563,-194.35407659,0.000148,2]
[392835800,1762023037572,-300.0,0.000148,2]
[392835801,1762023037582,-250.0,0.000148,2]
[392835802,1762023037591,-1425.0,0.00014804,2]
[392835803,1762023037604,-168.0,0.00014807,2]
[392835804,1762023037613,-33486.35,0.00014807,2]
[392835805,1762023037623,-1060.44286918,0.00014811,2]
[392835806,1762023037632,-2961.97030388,0.00014811,2]
[392835807,1762023037641,-8999.93225687,0.00014811,2]
[392835808,1762023037650,-150.99,0.00014811,2]
[392835809,1762023037660,-638.21,0.00014811,2]
[392835810,1762023037669,-9999.99,0.00014811,2]
[392835811,1762023037678,-592.68,0.00014811,2]
[392835812,1762023037687,-768.49,0.00014811,2]
[392835813,1762023037698,-420.86,0.00014811,2]
[392835814,1762023037708,-9999.99,0.00014811,2]
[392835815,1762023037718,-1720.61,0.00014811,2]